fUSD/lending_fUSD_20260512
["ID","MTS","AMOUNT","RATE_DAILY","PERIOD"]
[422127884,1778598632000,-500.0,0.0001412,2]
[422127896,1778598632000,-500.0,0.0001412,2]
[422127886,1778598632000,-245.94453871,0.0001412,2]
[422127853,1778598632000,-150.0,0.00013488,2]
[422127878,1778598632000,-500.0,0.0001412,2]
[422127907,1778598632000,-500.0,0.0001412,2]
[422127855,1778598632000,-150.0,0.00013488,2]
[422127854,1778598632000,-270.22226107,0.00013488,2]
[422127857,1778598632000,-150.0,0.00013488,2]
[422127865,1778598632000,-400.0,0.000138,5]
[422127858,1778598632000,-208.2157166,0.00013496,2]
[422127856,1778598632000,-150.0,0.00013488,2]
[422127864,1778598632000,-150.0,0.00013787,2]
[422127859,1778598632000,-150.0,0.00013638,2]
[422127861,1778598632000,-167.57,0.00013699,2]
[422127862,1778598632000,-200.0,0.000137,5]
[422127863,1778598632000,-150.0,0.000137,2]
[422127880,1778598632000,-234.03227585,0.0001412,2]
[422127873,1778598632000,-526.35854918,0.00014068,2]
[422127872,1778598632000,-159.77478987,0.00014068,2]
[422127874,1778598632000,-150.0,0.00014087,2]
[422127870,1778598632000,-2496.85,0.00013978,2]
[422127868,1778598632000,-1680.0,0.00013907,2]
[422127876,1778598632000,-6022.43379979,0.000141,2]
[422127866,1778598632000,-160.0,0.00013812,2]
[422127867,1778598632000,-700.0,0.000139,5]
[422127877,1778598632000,-379.84388088,0.0001412,2]
[422127869,1778598632000,-150.0,0.00013937,2]
[422127871,1778598632000,-2820.7668585,0.00014021,2]
[422127889,1778598632000,-500.0,0.0001412,2]
[422127879,1778598632000,-500.0,0.0001412,2]
[422127875,1778598632000,-2820.76685845,0.00014097,2]
[422127910,1778598632000,-500.0,0.0001412,2]
[422127860,1778598632000,-2496.85,0.00013645,2]
[422127912,1778598632000,-500.0,0.0001412,2]
[422127938,1778598632000,-434.08235112,0.0001412,2]
[422127943,1778598632000,-295.8530546,0.0001412,2]
[422127947,1778598632000,-560.56921783,0.0001412,2]
[422127948,1778598632000,-560.56921783,0.0001412,2]
[422127950,1778598632000,-560.56921783,0.0001412,2]
[422127951,1778598632000,-560.56921783,0.0001412,2]
[422127959,1778598632000,-560.56921783,0.0001412,2]
[422127949,1778598632000,-560.56921783,0.0001412,2]
[422127955,1778598632000,-560.56921783,0.0001412,2]
[422127958,1778598632000,-560.56921783,0.0001412,2]
[422127956,1778598632000,-560.56921783,0.0001412,2]
[422127957,1778598632000,-560.56921783,0.0001412,2]
[422127939,1778598632000,-65.91764888,0.0001412,2]
[422127952,1778598632000,-560.56921783,0.0001412,2]
[422127960,1778598632000,-560.56921783,0.0001412,2]
[422127963,1778598632000,-560.56921783,0.0001412,2]
[422127965,1778598632000,-560.56921783,0.0001412,2]
[422127961,1778598632000,-560.56921783,0.0001412,2]
[422127970,1778598632000,-560.56921783,0.0001412,2]
[422127964,1778598632000,-560.56921783,0.0001412,2]
[422127968,1778598632000,-560.56921783,0.0001412,2]
[422127969,1778598632000,-560.56921783,0.0001412,2]
[422127962,1778598632000,-560.56921783,0.0001412,2]
[422127966,1778598632000,-560.56921783,0.0001412,2]
[422127967,1778598632000,-560.56921783,0.0001412,2]
[422127908,1778598632000,-500.0,0.0001412,2]
[422127954,1778598632000,-560.56921783,0.0001412,2]
[422127946,1778598632000,-560.56921783,0.0001412,2]
[422127953,1778598632000,-560.56921783,0.0001412,2]
[422127940,1778598632000,-500.0,0.0001412,2]
[422127914,1778598632000,-500.0,0.0001412,2]
[422127918,1778598632000,-23.76569294,0.0001412,2]
[422127945,1778598632000,-560.56921783,0.0001412,2]
[422127921,1778598632000,-500.0,0.0001412,2]
[422127922,1778598632000,-359.94667984,0.0001412,2]
[422127917,1778598632000,-476.23430706,0.0001412,2]
[422127919,1778598632000,-421.39667984,0.0001412,2]
[422127923,1778598632000,-140.05332016,0.0001412,2]
[422127920,1778598632000,-78.60332016,0.0001412,2]
[422127915,1778598632000,-500.0,0.0001412,2]
[422127935,1778598632000,-500.0,0.0001412,2]
[422127925,1778598632000,-500.0,0.0001412,2]
[422127936,1778598632000,-500.0,0.0001412,2]
[422127927,1778598632000,-500.0,0.0001412,2]
[422127916,1778598632000,-500.0,0.0001412,2]
[422127924,1778598632000,-500.0,0.0001412,2]
[422127926,1778598632000,-642.59358044,0.0001412,2]
[422127944,1778598632000,-264.71616323,0.0001412,2]
[422127937,1778598632000,-500.0,0.0001412,2]
[422127932,1778598632000,-500.0,0.0001412,2]
[422127934,1778598632000,-500.0,0.0001412,2]
[422127942,1778598632000,-560.56921783,0.0001412,2]
[422127933,1778598632000,-500.0,0.0001412,2]
[422127930,1778598632000,-500.0,0.0001412,2]
[422127931,1778598632000,-500.0,0.0001412,2]
[422127941,1778598632000,-560.56921783,0.0001412,2]
[422127928,1778598632000,-500.0,0.0001412,2]
[422127929,1778598632000,-500.0,0.0001412,2]
[422127976,1778598633000,-446.68036768,0.0001412,2]
[422127975,1778598633000,-560.56921783,0.0001412,2]
[422127974,1778598633000,-560.56921783,0.0001412,2]
[422127973,1778598633000,-0.42426011,0.0001412,2]
[422127971,1778598633000,-560.56921783,0.0001412,2]
[422127972,1778598633000,-560.14495772,0.0001412,2]
[422127980,1778598637000,-113.88885015,0.0001412,2]
[422127978,1778598637000,-1023.26934686,0.00014021,2]
[422127979,1778598637000,-10162.78562851,0.00014021,2]
[422127984,1778598637000,-540.54888862,0.0001412,2]
[422127983,1778598637000,-560.56921783,0.0001412,2]
[422127981,1778598637000,-560.56921783,0.0001412,2]
[422127985,1778598637000,-540.54888862,0.0001412,2]
[422127982,1778598637000,-560.56921783,0.0001412,2]
[422127994,1778598638000,-540.54888862,0.0001412,2]
[422127986,1778598638000,-540.54888862,0.0001412,2]
[422127989,1778598638000,-540.54888862,0.0001412,2]
[422127990,1778598638000,-540.54888862,0.0001412,2]
[422127987,1778598638000,-540.54888862,0.0001412,2]
[422127988,1778598638000,-540.54888862,0.0001412,2]
[422127991,1778598638000,-540.54888862,0.0001412,2]
[422127992,1778598638000,-540.54888862,0.0001412,2]
[422127993,1778598638000,-540.54888862,0.0001412,2]
[422127995,1778598638000,-540.54888862,0.0001412,2]
[422128002,1778598638000,-1107.30558406,0.00014121,2]
[422128000,1778598638000,-7906.75379404,0.00014121,2]
[422127996,1778598638000,-540.54888862,0.0001412,2]
[422128005,1778598638000,-321.76869852,0.00014121,2]
[422128003,1778598638000,-993.34152341,0.00014121,2]
[422128004,1778598638000,-8698.17669008,0.00014121,2]
[422128001,1778598638000,-580.01333502,0.00014121,2]
[422127998,1778598638000,-840.85382669,0.0001412,2]
[422127997,1778598638000,-540.54888862,0.0001412,2]
[422127999,1778598638000,-6688.17937923,0.00014121,2]
[422128006,1778598638000,-582.57802036,0.00014121,2]
[422128022,1778598640000,-1999.95024874,0.00014121,2]
[422128021,1778598640000,-963.76004824,0.00014121,2]
[422128019,1778598640000,-381.18915085,0.00014121,2]
[422128020,1778598640000,-7347.05238212,0.00014121,2]
[422128018,1778598640000,-258.6310732,0.00014121,2]
[422128017,1778598640000,-1893.14056371,0.00014121,2]
[422128027,1778598643000,-3642.70196642,0.00014121,2]
[422128029,1778598643000,-1728.80659971,0.00014121,2]
[422128028,1778598643000,-1189.45646289,0.00014121,2]
[422128032,1778598643000,-1909.66153725,0.00014121,2]
[422128033,1778598643000,-97385.68836018,0.00014121,2]
[422128031,1778598643000,-2344.0897009,0.00014121,2]
[422128030,1778598643000,-40592.49999999,0.00014121,2]
[422128040,1778598645000,-2501.3232,0.00014121,2]
[422128047,1778598646000,-902.28638058,0.00014121,2]
[422128046,1778598646000,-1130.55163055,0.00014121,2]
[422128045,1778598646000,-525.16371791,0.00014121,2]
[422128044,1778598646000,-55580.279769,0.00014121,2]
[422128043,1778598646000,-444.58999998,0.00014121,2]
[422128042,1778598646000,-42264.28998961,0.00014121,2]
[422128041,1778598646000,-377.0455958,0.00014121,2]
[422128055,1778598790000,157.16,7.417e-05,2]
[422128054,1778598790000,157.16,6.767e-05,2]
[422128057,1778598791000,157.16,8.718e-05,2]
[422128056,1778598791000,157.16,8.067e-05,2]
[422128060,1778598952000,-152.18,0.00041316,120]
[422128065,1778598952000,-629.2,0.00041316,120]
[422128061,1778598952000,-629.2,0.00041316,120]
[422128062,1778598952000,-629.2,0.00041316,120]
[422128063,1778598952000,-629.2,0.00041316,120]
[422128064,1778598952000,-629.2,0.00041316,120]
[422128066,1778598952000,-629.2,0.00041316,120]
[422128074,1778598952000,-629.2,0.00041316,120]
[422128068,1778598952000,-629.2,0.00041316,120]
[422128069,1778598952000,-629.2,0.00041316,120]
[422128070,1778598952000,-629.2,0.00041316,120]
[422128071,1778598952000,-629.2,0.00041316,120]
[422128072,1778598952000,-629.2,0.00041316,120]
[422128073,1778598952000,-629.2,0.00041316,120]
[422128075,1778598952000,-629.2,0.00041316,120]
[422128067,1778598952000,-629.2,0.00041316,120]
[422128087,1778598953000,-500.0,0.00041316,70]
[422128089,1778598953000,-500.0,0.00041316,120]
[422128090,1778598953000,-634.30838947,0.00041316,120]
[422128092,1778598953000,-500.0,0.00041316,120]
[422128093,1778598953000,-500.0,0.00041316,120]
[422128088,1778598953000,-267.17668758,0.00041316,70]
[422128094,1778598953000,-500.0,0.00041316,120]
[422128091,1778598953000,-500.0,0.00041316,120]
[422128085,1778598953000,-500.0,0.00041316,120]
[422128081,1778598953000,-629.2,0.00041316,120]
[422128084,1778598953000,-629.31159004,0.00041316,120]
[422128083,1778598953000,-629.2,0.00041316,120]
[422128082,1778598953000,-629.2,0.00041316,120]
[422128079,1778598953000,-629.2,0.00041316,120]
[422128077,1778598953000,-629.2,0.00041316,120]
[422128080,1778598953000,-629.2,0.00041316,120]
[422128078,1778598953000,-629.2,0.00041316,120]
[422128076,1778598953000,-629.2,0.00041316,120]
[422128096,1778598953000,-500.0,0.00041316,120]
[422128086,1778598953000,-500.0,0.00041316,70]
[422128097,1778598953000,-457.051853,0.00041316,120]
[422128111,1778598953000,-8336.51,0.00041316,120]
[422128098,1778598953000,-100000.0,0.00041316,30]
[422128116,1778598953000,-8336.51,0.00041316,120]
[422128117,1778598953000,-8336.51,0.00041316,120]
[422128114,1778598953000,-8336.51,0.00041316,120]
[422128112,1778598953000,-8336.51,0.00041316,120]
[422128115,1778598953000,-8336.51,0.00041316,120]
[422128113,1778598953000,-8336.51,0.00041316,120]
[422128118,1778598953000,-8336.51,0.00041316,120]
[422128109,1778598953000,-8336.51,0.00041316,120]
[422128110,1778598953000,-8336.51,0.00041316,120]
[422128095,1778598953000,-500.0,0.00041316,120]
[422128107,1778598953000,-8336.51,0.00041316,120]
[422128106,1778598953000,-8336.51,0.00041316,120]
[422128103,1778598953000,-8336.51,0.00041316,120]
[422128105,1778598953000,-8336.51,0.00041316,120]
[422128104,1778598953000,-8336.51,0.00041316,120]
[422128102,1778598953000,-8336.51,0.00041316,120]
[422128099,1778598953000,-8336.51,0.00041316,120]
[422128101,1778598953000,-8336.51,0.00041316,120]
[422128100,1778598953000,-8336.51,0.00041316,120]
[422128108,1778598953000,-8336.51,0.00041316,120]
[422128130,1778598954000,-437.89249042,0.00041316,120]
[422128131,1778598954000,-1000000.0,0.00041316,30]
[422128133,1778598954000,-500.0,0.00041316,120]
[422128137,1778598954000,-500.0,0.00041316,120]
[422128134,1778598954000,-500.0,0.00041316,120]
[422128135,1778598954000,-500.0,0.00041316,120]
[422128129,1778598954000,-500.0,0.00041316,120]
[422128132,1778598954000,-500.0,0.00041316,120]
[422128127,1778598954000,-500.0,0.00041316,120]
[422128123,1778598954000,-39587.0,0.00041316,120]
[422128126,1778598954000,-500.0,0.00041316,120]
[422128124,1778598954000,-500.0,0.00041316,120]
[422128125,1778598954000,-500.0,0.00041316,120]
[422128122,1778598954000,-8336.62016132,0.00041316,120]
[422128120,1778598954000,-8336.51,0.00041316,120]
[422128121,1778598954000,-8336.51,0.00041316,120]
[422128119,1778598954000,-8336.51,0.00041316,120]
[422128136,1778598954000,-500.0,0.00041316,120]
[422128128,1778598954000,-500.0,0.00041316,120]
[422128138,1778598954000,-500.0,0.00041316,120]
[422128139,1778598954000,-500.0,0.00041316,120]
[422128141,1778598954000,-500.0,0.00041316,120]
[422128160,1778598954000,-500.0,0.00041316,120]
[422128159,1778598954000,-500.0,0.00041316,120]
[422128158,1778598954000,-500.0,0.00041316,120]
[422128156,1778598954000,-500.0,0.00041316,120]
[422128155,1778598954000,-500.0,0.00041316,120]
[422128157,1778598954000,-500.0,0.00041316,120]
[422128153,1778598954000,-500.0,0.00041316,120]
[422128152,1778598954000,-500.0,0.00041316,120]
[422128150,1778598954000,-500.0,0.00041316,120]
[422128154,1778598954000,-500.0,0.00041316,120]
[422128149,1778598954000,-500.0,0.00041316,120]
[422128147,1778598954000,-500.0,0.00041316,120]
[422128148,1778598954000,-500.0,0.00041316,120]
[422128145,1778598954000,-500.0,0.00041316,120]
[422128146,1778598954000,-617.89245303,0.00041316,120]
[422128143,1778598954000,-1814599.0,0.00041316,30]
[422128144,1778598954000,-500.0,0.00041316,120]
[422128142,1778598954000,-500.0,0.00041316,120]
[422128151,1778598954000,-500.0,0.00041316,120]
[422128140,1778598954000,-500.0,0.00041316,120]
[422128174,1778598955000,-500.0,0.00041316,120]
[422128173,1778598955000,-500.0,0.00041316,120]
[422128176,1778598955000,-504.96052588,0.00041316,120]
[422128180,1778598955000,-338.0,0.00041316,120]
[422128178,1778598955000,-500.0,0.00041316,120]
[422128175,1778598955000,-500.0,0.00041316,120]
[422128171,1778598955000,-500.0,0.00041316,120]
[422128177,1778598955000,-2101.49007908,0.00041316,120]
[422128172,1778598955000,-500.0,0.00041316,120]
[422128161,1778598955000,-500.0,0.00041316,120]
[422128170,1778598955000,-500.0,0.00041316,120]
[422128167,1778598955000,-500.0,0.00041316,120]
[422128168,1778598955000,-500.0,0.00041316,120]
[422128166,1778598955000,-100000.0,0.00041316,30]
[422128163,1778598955000,-500.0,0.00041316,120]
[422128164,1778598955000,-500.0,0.00041316,120]
[422128165,1778598955000,-499.68816124,0.00041316,120]
[422128162,1778598955000,-500.0,0.00041316,120]
[422128181,1778598955000,-9487.0,0.00041316,120]
[422128169,1778598955000,-500.0,0.00041316,120]
[422128179,1778598955000,-500.0,0.00041316,120]
[422128203,1778598955000,-2750.0,0.00041316,120]
[422128182,1778598955000,-4241.82231641,0.00041316,120]
[422128183,1778598955000,-848.30453815,0.00041316,120]
[422128202,1778598955000,-2750.0,0.00041316,120]
[422128201,1778598955000,-2750.0,0.00041316,120]
[422128199,1778598955000,-2750.0,0.00041316,120]
[422128198,1778598955000,-2750.0,0.00041316,120]
[422128200,1778598955000,-2750.0,0.00041316,120]
[422128197,1778598955000,-2750.0,0.00041316,120]
[422128195,1778598955000,-2750.0,0.00041316,120]
[422128196,1778598955000,-2750.0,0.00041316,120]
[422128194,1778598955000,-2750.0,0.00041316,120]
[422128204,1778598955000,-2750.0,0.00041316,120]
[422128191,1778598955000,-550.09006127,0.00041316,120]
[422128189,1778598955000,-424.63513797,0.00041316,120]
[422128192,1778598955000,-341.63517442,0.00041316,120]
[422128190,1778598955000,-5203.94827246,0.00041316,30]
[422128188,1778598955000,-500.0,0.00041316,120]
[422128187,1778598955000,-500.0,0.00041316,120]
[422128186,1778598955000,-500.0,0.00041316,120]
[422128184,1778598955000,-500.0,0.00041316,120]
[422128185,1778598955000,-521.12940949,0.00041316,120]
[422128193,1778598955000,-6062.37246837,0.00041316,30]
[422128217,1778598956000,-2750.0,0.00041316,120]
[422128218,1778598956000,-1000.0,0.00041316,120]
[422128221,1778598956000,-500.0,0.00041316,120]
[422128222,1778598956000,-9380.95764355,0.00041316,120]
[422128225,1778598956000,-500.0,0.00041316,120]
[422128220,1778598956000,-500.0,0.00041316,120]
[422128215,1778598956000,-2750.0,0.00041316,120]
[422128219,1778598956000,-229024.0,0.00041316,60]
[422128216,1778598956000,-2750.0,0.00041316,120]
[422128210,1778598956000,-2750.0,0.00041316,120]
[422128211,1778598956000,-2750.0,0.00041316,120]
[422128212,1778598956000,-2750.0,0.00041316,120]
[422128213,1778598956000,-2750.0,0.00041316,120]
[422128208,1778598956000,-2750.0,0.00041316,120]
[422128209,1778598956000,-2750.0,0.00041316,120]
[422128207,1778598956000,-2750.0,0.00041316,120]
[422128205,1778598956000,-2750.0,0.00041316,120]
[422128206,1778598956000,-2750.0,0.00041316,120]
[422128214,1778598956000,-2750.0,0.00041316,120]
[422128224,1778598956000,-500.0,0.00041316,120]
[422128228,1778598956000,-500.0,0.00041316,120]
[422128226,1778598956000,-500.0,0.00041316,120]
[422128223,1778598956000,-500.0,0.00041316,120]
[422128243,1778598956000,-229.56305122,0.00041316,120]
[422128245,1778598956000,-190.96,0.00041316,120]
[422128244,1778598956000,-594.4260631,0.00041316,120]
[422128242,1778598956000,-591.73469834,0.00041316,120]
[422128240,1778598956000,-500.0,0.00041316,120]
[422128239,1778598956000,-500.0,0.00041316,120]
[422128238,1778598956000,-500.0,0.00041316,120]
[422128237,1778598956000,-500.0,0.00041316,120]
[422128241,1778598956000,-500.0,0.00041316,120]
[422128235,1778598956000,-500.0,0.00041316,120]
[422128236,1778598956000,-500.0,0.00041316,120]
[422128229,1778598956000,-500.0,0.00041316,120]
[422128230,1778598956000,-500.0,0.00041316,120]
[422128232,1778598956000,-500.0,0.00041316,120]
[422128227,1778598956000,-500.0,0.00041316,120]
[422128231,1778598956000,-500.0,0.00041316,120]
[422128234,1778598956000,-500.0,0.00041316,120]
[422128233,1778598956000,-500.0,0.00041316,120]
[422128258,1778598957000,-2377.52,0.00041316,120]
[422128263,1778598957000,-2377.52,0.00041316,120]
[422128264,1778598957000,-2377.52,0.00041316,120]
[422128262,1778598957000,-2377.52,0.00041316,120]
[422128261,1778598957000,-2377.52,0.00041316,120]
[422128260,1778598957000,-2377.52,0.00041316,120]
[422128259,1778598957000,-2377.52,0.00041316,120]
[422128257,1778598957000,-2377.52,0.00041316,120]
[422128256,1778598957000,-2377.52,0.00041316,120]
[422128246,1778598957000,-42794.84,0.00041316,120]
[422128254,1778598957000,-2377.52,0.00041316,120]
[422128252,1778598957000,-1000.0,0.00041316,30]
[422128253,1778598957000,-2377.52,0.00041316,120]
[422128248,1778598957000,-18623.32067519,0.00041316,50]
[422128249,1778598957000,-154463.03983791,0.00041316,60]
[422128247,1778598957000,-100000.0,0.00041316,30]
[422128250,1778598957000,-500.0,0.00041316,120]
[422128251,1778598957000,-1999.78330868,0.00041316,120]
[422128265,1778598957000,-2377.52,0.00041316,120]
[422128255,1778598957000,-2377.52,0.00041316,120]
[422128266,1778598957000,-2377.52,0.00041316,120]
[422128269,1778598957000,-2377.52,0.00041316,120]
[422128267,1778598957000,-2377.52,0.00041316,120]
[422128289,1778598957000,-1375.17,0.00041316,120]
[422128284,1778598957000,-1375.17,0.00041316,120]
[422128287,1778598957000,-1375.17,0.00041316,120]
[422128286,1778598957000,-1375.17,0.00041316,120]
[422128285,1778598957000,-1375.17,0.00041316,120]
[422128283,1778598957000,-1375.17,0.00041316,120]
[422128280,1778598957000,-1375.17,0.00041316,120]
[422128281,1778598957000,-1375.17,0.00041316,120]
[422128282,1778598957000,-1375.17,0.00041316,120]
[422128279,1778598957000,-500.0,0.00041316,120]
[422128288,1778598957000,-1375.17,0.00041316,120]
[422128277,1778598957000,-500.0,0.00041316,120]
[422128276,1778598957000,-2951.88415378,0.00041316,120]
[422128275,1778598957000,-2377.58588387,0.00041316,120]
[422128273,1778598957000,-2377.52,0.00041316,120]
[422128271,1778598957000,-2377.52,0.00041316,120]
[422128274,1778598957000,-2377.52,0.00041316,120]
[422128272,1778598957000,-2377.52,0.00041316,120]
[422128270,1778598957000,-2377.52,0.00041316,120]
[422128268,1778598957000,-2377.52,0.00041316,120]
[422128278,1778598957000,-500.0,0.00041316,120]
[422128300,1778598958000,-1375.17,0.00041316,120]
[422128301,1778598958000,-1375.17,0.00041316,120]
[422128306,1778598958000,-640.08,0.00041316,30]
[422128305,1778598958000,-571.93,0.00041316,30]
[422128303,1778598958000,-1375.28522291,0.00041316,120]
[422128302,1778598958000,-1375.17,0.00041316,120]
[422128304,1778598958000,-479.3,0.00041316,30]
[422128299,1778598958000,-1375.17,0.00041316,120]
[422128293,1778598958000,-1375.17,0.00041316,120]
[422128297,1778598958000,-1375.17,0.00041316,120]
[422128295,1778598958000,-1375.17,0.00041316,120]
[422128292,1778598958000,-1375.17,0.00041316,120]
[422128296,1778598958000,-1375.17,0.00041316,120]
[422128294,1778598958000,-1375.17,0.00041316,120]
[422128290,1778598958000,-1375.17,0.00041316,120]
[422128291,1778598958000,-1375.17,0.00041316,120]
[422128307,1778598958000,-569.68,0.00041316,30]
[422128298,1778598958000,-1375.17,0.00041316,120]
[422128310,1778598958000,-640.08,0.00041316,30]
[422128312,1778598958000,-569.68,0.00041316,30]
[422128308,1778598958000,-393.72,0.00041316,30]
[422128309,1778598958000,-571.93,0.00041316,30]
[422128327,1778598958000,-571.93,0.00041316,30]
[422128324,1778598958000,-569.68,0.00041316,30]
[422128325,1778598958000,-571.93,0.00041316,30]
[422128326,1778598958000,-569.68,0.00041316,30]
[422128322,1778598958000,-571.93,0.00041316,30]
[422128319,1778598958000,-569.68,0.00041316,30]
[422128321,1778598958000,-567.07,0.00041316,30]
[422128323,1778598958000,-435.35,0.00041316,30]
[422128318,1778598958000,-640.08,0.00041316,30]
[422128316,1778598958000,-393.72,0.00041316,30]
[422128317,1778598958000,-571.93,0.00041316,30]
[422128315,1778598958000,-569.68,0.00041316,30]
[422128313,1778598958000,-571.93,0.00041316,30]
[422128328,1778598958000,-571.93,0.00041316,30]
[422128314,1778598958000,-638.97,0.00041316,30]
[422128320,1778598958000,-569.68,0.00041316,30]
[422128311,1778598958000,-393.72,0.00041316,30]
[422128336,1778598959000,-640.08,0.00041316,30]
[422128338,1778598959000,-569.69,0.00041316,30]
[422128335,1778598959000,-391.57,0.00041316,30]
[422128333,1778598959000,-500.0,0.00041316,120]
[422128330,1778598959000,-571.93,0.00041316,30]
[422128331,1778598959000,-569.68,0.00041316,30]
[422128329,1778598959000,-569.68,0.00041316,30]
[422128337,1778598959000,-571.94,0.00041316,30]
[422128334,1778598959000,-261.650128,0.00041316,90]
[422128340,1778598959000,-479.28,0.00041316,30]
[422128332,1778598959000,-28486.43755719,0.00041316,120]
[422128341,1778598959000,-393.76,0.00041316,30]
[422128349,1778598959000,5398.10974753,0.00041316,30]
[422128350,1778598959000,12340.40513427,0.00041316,30]
[422128348,1778598959000,161.2,0.00041316,30]
[422128347,1778598959000,32517.44,0.00041316,30]
[422128351,1778598959000,2645.06919422,0.00041316,30]
[422128346,1778598959000,-181.85213197,0.00041316,120]
[422128344,1778598959000,-640.08,0.00041316,30]
[422128343,1778598959000,-569.68,0.00041316,30]
[422128342,1778598959000,-530.94,0.00041316,30]
[422128345,1778598959000,-571.93,0.00041316,30]
[422128339,1778598959000,-183.75,0.00041316,30]
[422128353,1778598960000,537.0,0.00041316,30]
[422128354,1778598960000,883.0,0.00041316,30]
[422128352,1778598960000,491.0,0.00041316,30]
[422128355,1778598961000,150.0,0.00016438,30]
[422128356,1778598962000,150.0,0.00016438,30]
[422128357,1778598965000,151.0,0.00041316,120]
[422128359,1778598966000,151.0,0.00041316,120]
[422128358,1778598966000,532.08476084,0.00041316,120]
[422128360,1778598967000,151.0,0.00041316,120]
[422128361,1778598967000,151.0,0.00041316,120]
[422128362,1778598968000,151.0,0.00041316,120]
[422128363,1778598984000,-1500.0,0.000229,30]
[422128381,1778598985000,-288.55,0.00030137,120]
[422128380,1778598985000,-234.19,0.00029839,30]
[422128378,1778598985000,-470.61215807,0.0002943,45]
[422128379,1778598985000,-967.6,0.00029839,30]
[422128376,1778598985000,-156.29,0.00028709,30]
[422128377,1778598985000,-470.23226795,0.00029417,45]
[422128375,1778598985000,-230.83421799,0.00027881,120]
[422128374,1778598985000,-234.19,0.00027645,30]
[422128372,1778598985000,-156.35,0.00027397,30]
[422128373,1778598985000,-967.6,0.00027645,30]
[422128369,1778598985000,-156.33,0.00026575,30]
[422128370,1778598985000,-156.29,0.00026617,30]
[422128367,1778598985000,-156.29,0.00025947,30]
[422128368,1778598985000,-156.29,0.0002643,30]
[422128365,1778598985000,-929.78,0.00023,30]
[422128366,1778598985000,-156.29,0.00025463,30]
[422128364,1778598985000,-962.247,0.00022956,30]
[422128371,1778598985000,-156.29,0.00026913,30]
[422128382,1778598985000,-155.0,0.00030658,30]
[422128401,1778598985000,-165.0,0.00031666,30]
[422128384,1778598985000,-158.0,0.00030658,30]
[422128402,1778598985000,-173.0,0.00031666,30]
[422128400,1778598985000,-301.0,0.00031658,30]
[422128398,1778598985000,-152.0,0.00031658,30]
[422128399,1778598985000,-154.0,0.00031658,30]
[422128397,1778598985000,-930.0,0.00031658,30]
[422128396,1778598985000,-396.0,0.00031658,30]
[422128394,1778598985000,-154.0,0.00031658,30]
[422128395,1778598985000,-158.0,0.00031658,30]
[422128383,1778598985000,-154.0,0.00030658,30]
[422128392,1778598985000,-152.43,0.00030787,120]
[422128391,1778598985000,-173.0,0.00030666,30]
[422128390,1778598985000,-165.0,0.00030666,30]
[422128388,1778598985000,-154.0,0.00030658,30]
[422128387,1778598985000,-152.0,0.00030658,30]
[422128389,1778598985000,-301.0,0.00030658,30]
[422128386,1778598985000,-930.0,0.00030658,30]
[422128385,1778598985000,-396.0,0.00030658,30]
[422128393,1778598985000,-155.0,0.00031658,30]
[422128415,1778598986000,-154.0,0.00032658,30]
[422128414,1778598986000,-152.0,0.00032658,30]
[422128418,1778598986000,-173.0,0.00032666,30]
[422128416,1778598986000,-301.0,0.00032658,30]